fUST/lending_fUST_20250623
["ID","MTS","AMOUNT","RATE_DAILY","PERIOD"]
[367143884,1750669845800,-460.0,0.00022191,2]
[367143885,1750669845809,-460.0,0.00022191,2]
[367143886,1750669845819,-460.0,0.00022191,2]
[367143887,1750669845829,-460.0,0.00022191,2]
[367143888,1750669845838,-242.23262527,0.00022191,2]
[367143889,1750669845847,-460.0,0.00022191,2]
[367143890,1750669845857,-325.35857146,0.00022191,2]
[367143891,1750669845866,-460.0,0.00022191,2]
[367143892,1750669845876,-460.0,0.00022191,2]
[367143893,1750669845886,-893.44,0.00022191,2]
[367143894,1750669845895,-1497.92,0.00022191,2]
[367143895,1750669845904,-460.0,0.00022191,2]
[367143896,1750669845914,-460.0,0.00022191,2]
[367143897,1750669845923,-460.0,0.00022191,2]
[367143899,1750669845932,-388.39046879,0.00022191,2]
[367143900,1750669845941,-460.0,0.00022191,2]
[367143901,1750669845950,-460.0,0.00022191,2]
[367143902,1750669845959,-460.0,0.00022191,2]
[367143903,1750669845968,-644.0,0.00022191,2]
[367143904,1750669845978,-665.88,0.00022191,2]
[367143905,1750669845987,-460.0,0.00022191,2]
[367143906,1750669845997,-460.0,0.00022191,2]
[367143907,1750669846006,-460.0,0.00022191,2]
[367143908,1750669846015,-1860.81,0.00022191,2]
[367143909,1750669846025,-460.0,0.00022191,2]
[367143910,1750669846034,-460.0,0.00022191,2]
[367143911,1750669846043,-460.0,0.00022191,2]
[367143912,1750669846053,-461.85945375,0.00022191,2]
[367143913,1750669846063,-801.39,0.00022191,2]
[367143914,1750669846072,-460.0,0.00022191,2]
[367143915,1750669846081,-1747.73,0.00022191,2]
[367143916,1750669846091,-637.69,0.00022191,2]
[367143917,1750669846101,-182.75399511,0.00022191,2]
[367143918,1750669846110,-460.0,0.00022191,2]
[367143919,1750669846119,-354.29571344,0.00022191,2]
[367143920,1750669846128,-460.0,0.00022191,2]
[367143921,1750669846138,-417.87977399,0.00022191,2]
[367143923,1750669846150,-460.0,0.00022191,2]
[367143925,1750669846159,-460.0,0.00022191,2]
[367143927,1750669846168,-711.44,0.00022191,2]
[367143929,1750669846179,-460.0,0.00022191,2]
[367143931,1750669846188,-460.0,0.00022191,2]
[367143933,1750669846197,-460.0,0.00022191,2]
[367143935,1750669846206,-460.0,0.00022191,2]
[367143937,1750669846215,-200.0,0.00022191,10]
[367143939,1750669846225,-200.0,0.00022191,10]
[367143940,1750669846234,-200.0,0.00022191,10]
[367143942,1750669846242,-460.0,0.00022191,2]
[367143944,1750669846251,-200.0,0.00022191,10]
[367143946,1750669846260,-200.0,0.00022191,10]
[367143948,1750669846269,-200.0,0.00022191,10]
[367143950,1750669846278,-975.91,0.00022191,2]
[367143952,1750669846289,-676.85,0.00022191,2]
[367143954,1750669846298,-496.71,0.00022191,2]
[367143956,1750669846307,-955.89,0.00022191,2]
[367143958,1750669846317,-460.0,0.00022191,2]
[367143960,1750669846326,-1152.11,0.00022191,2]
[367143962,1750669846336,-460.0,0.00022191,2]
[367143964,1750669846345,-1030.01,0.00022191,2]
[367143966,1750669846355,-460.0,0.00022191,2]
[367143968,1750669846363,-460.0,0.00022191,2]
[367143970,1750669846373,-5027.95,0.00022191,2]
[367143972,1750669846382,-460.0,0.00022191,2]
[367143974,1750669846395,-460.0,0.00022191,2]
[367143976,1750669846405,-1016.47,0.00022191,2]
[367143978,1750669846414,-1722.97,0.00022191,2]
[367143980,1750669846423,-649.41,0.00022191,2]
[367143982,1750669846433,-460.0,0.00022191,2]
[367143984,1750669846442,-1321.66,0.00022191,2]
[367143986,1750669846451,-190.40750909,0.00022191,2]
[367143987,1750669846461,-460.0,0.00022191,2]
[367143988,1750669846471,-500.0,0.00022191,2]
[367143989,1750669846481,-460.0,0.00022191,2]
[367143990,1750669846491,-460.0,0.00022191,2]
[367143991,1750669846501,-460.0,0.00022191,2]
[367143992,1750669846510,-481.46,0.00022191,2]
[367143993,1750669846519,-460.0,0.00022191,2]
[367143994,1750669846528,-460.0,0.00022191,2]
[367143995,1750669846537,-1099.78,0.00022191,2]
[367143996,1750669846548,-460.0,0.00022191,2]
[367143997,1750669846559,-460.0,0.00022191,2]
[367143998,1750669846568,-2125.74,0.00022191,2]
[367143999,1750669846577,-235.60988074,0.00022191,2]
[367144000,1750669846586,-460.0,0.00022191,2]
[367144001,1750669846596,-1491.72,0.00022191,2]
[367144002,1750669846605,-460.0,0.00022191,2]
[367144003,1750669846614,-460.0,0.00022191,2]
[367144004,1750669846623,-460.0,0.00022191,2]
[367144005,1750669846633,-581.88423486,0.00022191,2]
[367144006,1750669846642,-5688.26,0.00022191,2]
[367144007,1750669846651,-681.15,0.00022191,2]
[367144008,1750669846661,-1101.54,0.00022191,2]
[367144009,1750669846671,-535.25959483,0.00022191,2]
[367144010,1750669846680,-460.0,0.00022191,2]
[367144011,1750669846689,-7202.62,0.00022191,2]
[367144012,1750669846698,-208.7739947,0.00022191,2]
[367144013,1750669846707,-460.0,0.00022191,2]
[367144014,1750669846716,-460.0,0.00022191,2]
[367144015,1750669846725,-460.0,0.00022191,2]
[367144016,1750669846734,-703.34,0.00022191,2]
[367144017,1750669846744,-460.0,0.00022191,2]
[367144018,1750669846762,-1307.29,0.00022191,2]
[367144019,1750669846772,-698.54,0.00022191,2]
[367144020,1750669846782,-460.0,0.00022191,2]
[367144021,1750669846791,-460.0,0.00022191,2]
[367144022,1750669846800,-460.0,0.00022191,2]
[367144023,1750669846810,-460.0,0.00022191,2]
[367144024,1750669846820,-514.31,0.00022191,2]
[367144025,1750669846829,-798.98,0.00022191,2]
[367144026,1750669846838,-460.0,0.00022191,2]
[367144027,1750669846848,-460.0,0.00022191,2]
[367144028,1750669846857,-460.0,0.00022191,2]
[367144029,1750669846866,-1039.35,0.00022191,2]
[367144030,1750669846876,-526.38159026,0.00022191,2]
[367144031,1750669846886,-742.51,0.00022191,2]
[367144032,1750669846895,-652.77,0.00022191,2]
[367144033,1750669846905,-612.92,0.00022191,2]
[367144034,1750669846914,-460.49,0.00022191,2]
[367144035,1750669846923,-460.0,0.00022191,2]
[367144036,1750669846933,-460.0,0.00022191,2]
[367144037,1750669846942,-944.35,0.00022191,2]
[367144038,1750669846951,-460.0,0.00022191,2]
[367144039,1750669846961,-1779.26,0.00022191,2]
[367144040,1750669846970,-460.0,0.00022191,2]
[367144041,1750669846979,-460.0,0.00022191,2]
[367144042,1750669846988,-460.0,0.00022191,2]
[367144043,1750669846998,-918.9,0.00022191,2]
[367144044,1750669847008,-460.0,0.00022191,2]
[367144045,1750669847018,-460.0,0.00022191,2]
[367144046,1750669847027,-460.0,0.00022191,2]
[367144047,1750669847036,-460.0,0.00022191,2]
[367144048,1750669847045,-521.61,0.00022191,2]
[367144049,1750669847057,-2683.33,0.00022191,2]
[367144050,1750669847066,-582.7,0.00022191,2]
[367144051,1750669847075,-460.0,0.00022191,2]
[367144052,1750669847085,-460.0,0.00022191,2]
[367144053,1750669847094,-3018.27,0.00022191,2]
[367144054,1750669847103,-875.32,0.00022191,2]
[367144055,1750669847111,-460.0,0.00022191,2]
[367144056,1750669847121,-460.0,0.00022191,2]
[367144057,1750669847130,-4903.45,0.00022191,2]
[367144058,1750669847138,-460.0,0.00022191,2]
[367144059,1750669847148,-460.0,0.00022191,2]
[367144060,1750669847157,-460.0,0.00022191,2]
[367144061,1750669847167,-6605.39,0.00022191,2]
[367144062,1750669847177,-1746.25,0.00022191,2]
[367144063,1750669847187,-1958.28,0.00022191,2]
[367144064,1750669847197,-864.04,0.00022191,2]
[367144065,1750669847207,-875.79,0.00022191,2]
[367144066,1750669847217,-874.1,0.00022191,2]
[367144067,1750669847228,-460.0,0.00022191,2]
[367144068,1750669847237,-460.0,0.00022191,2]
[367144069,1750669847248,-520.13,0.00022191,2]
[367144070,1750669847257,-460.0,0.00022191,2]
[367144071,1750669847268,-460.0,0.00022191,2]
[367144072,1750669847278,-1509.2,0.00022191,2]
[367144073,1750669847287,-460.0,0.00022191,2]
[367144074,1750669847297,-460.0,0.00022191,2]
[367144075,1750669847307,-2287.98,0.00022191,2]
[367144076,1750669847317,-671.84,0.00022191,2]
[367144077,1750669847328,-460.0,0.00022191,2]
[367144078,1750669847339,-460.0,0.00022191,2]
[367144079,1750669847348,-1143.3,0.00022191,2]
[367144080,1750669847357,-460.0,0.00022191,2]
[367144081,1750669847367,-483.58,0.00022191,2]
[367144082,1750669847377,-460.0,0.00022191,2]
[367144083,1750669847387,-769.57,0.00022191,2]
[367144084,1750669847402,-460.0,0.00022191,2]
[367144085,1750669847412,-734.59,0.00022191,2]
[367144086,1750669847421,-2393.58,0.00022191,2]
[367144087,1750669847431,-589.17,0.00022191,2]
[367144088,1750669847441,-1338.91,0.00022191,2]
[367144089,1750669847450,-460.0,0.00022191,2]
[367144090,1750669847459,-592.05,0.00022191,2]
[367144091,1750669847475,-460.0,0.00022191,2]
[367144092,1750669847485,-460.0,0.00022191,2]
[367144093,1750669847494,-460.0,0.00022191,2]
[367144094,1750669847503,-515.01,0.00022191,2]
[367144095,1750669847513,-460.0,0.00022191,2]
[367144096,1750669847522,-1866.18,0.00022191,2]
[367144097,1750669847531,-460.0,0.00022191,2]
[367144098,1750669847541,-460.0,0.00022191,2]
[367144099,1750669847550,-5898.42,0.00022191,2]
[367144100,1750669847559,-1002.73,0.00022191,2]
[367144101,1750669847568,-5866.25,0.00022191,2]
[367144102,1750669847577,-460.0,0.00022191,2]
[367144103,1750669847586,-521.08,0.00022191,2]
[367144104,1750669847595,-283.66359152,0.00022191,2]
[367144105,1750669847604,-460.0,0.00022191,2]
[367144106,1750669847613,-2170.22466493,0.00022191,2]
[367144107,1750669847654,-584.53137275,0.00022191,2]
[367144108,1750669847667,-589.65251057,0.00022191,2]
[367144109,1750669848821,-1827.73,0.00021917,2]
[367144110,1750669848830,-460.0,0.00021917,2]
[367144111,1750669848841,-460.0,0.00021917,2]
[367144112,1750669848850,-433.04079317,0.00021917,2]
[367144113,1750669848860,-429.08357843,0.00021917,2]
[367144114,1750669848870,-3456.33,0.00021917,2]
[367144115,1750669848880,-460.0,0.00021917,2]
[367144116,1750669848890,-858.69145175,0.00022191,2]
[367144117,1750669848899,-652.33,0.00022191,2]
[367144118,1750669848909,-460.0,0.00022191,2]
[367144119,1750669848919,-460.0,0.00022191,2]
[367144120,1750669848929,-7285.86167538,0.00022191,2]
[367144122,1750669878937,-668.87832462,0.00022191,2]
[367144123,1750669878947,-460.0,0.00022191,2]
[367144124,1750669878957,-2406.84,0.00022191,2]
[367144125,1750669878967,-460.0,0.00022191,2]
[367144126,1750669878976,-623.55,0.00022191,2]
[367144127,1750669878985,-801.51,0.00022191,2]
[367144128,1750669878995,-460.0,0.00022191,2]
[367144129,1750669879004,-1272.61,0.00022191,2]
[367144130,1750669879013,-541.43,0.00022191,2]
[367144131,1750669879023,-460.0,0.00022191,2]
[367144132,1750669879032,-460.0,0.00022191,2]
[367144133,1750669879043,-460.0,0.00022191,2]
[367144134,1750669879054,-1006.48,0.00022191,2]
[367144135,1750669879064,-610.46,0.00022191,2]
[367144136,1750669879075,-460.0,0.00022191,2]
[367144137,1750669879084,-460.0,0.00022191,2]
[367144138,1750669879094,-594.16,0.00022191,2]
[367144139,1750669879104,-932.89,0.00022191,2]
[367144140,1750669879113,-745.37,0.00022191,2]
[367144141,1750669879122,-460.0,0.00022191,2]
[367144142,1750669879132,-6354.03,0.00022191,2]
[367144143,1750669879142,-500.0,0.00022191,2]
[367144144,1750669879151,-460.0,0.00022191,2]
[367144145,1750669879161,-1093.05,0.00022191,2]
[367144146,1750669879170,-460.0,0.00022191,2]
[367144147,1750669879180,-460.0,0.00022191,2]
[367144148,1750669879189,-632.99,0.00022191,2]
[367144149,1750669879199,-460.0,0.00022191,2]
[367144150,1750669879209,-942.31,0.00022191,2]
[367144151,1750669879219,-460.0,0.00022191,2]
[367144152,1750669879228,-460.0,0.00022191,2]
[367144153,1750669879238,-880.51,0.00022191,2]
[367144154,1750669879248,-726.61,0.00022191,2]
[367144155,1750669879258,-494.14023027,0.00022191,2]
[367144156,1750669879269,-2327.72,0.00022191,2]
[367144157,1750669879279,-460.0,0.00022191,2]
[367144158,1750669879288,-874.88,0.00022191,2]
[367144159,1750669879297,-460.0,0.00022191,2]
[367144160,1750669879307,-1267.21,0.00022191,2]
[367144161,1750669879316,-621.04,0.00022191,2]
[367144162,1750669879326,-1827.73,0.00022191,2]
[367144163,1750669879335,-460.0,0.00022191,2]
[367144164,1750669879345,-3456.33,0.00022191,2]
[367144165,1750669879355,-500.0,0.00022246,2]
[367144166,1750669879364,-151.0,0.00022246,2]
[367144167,1750669879374,-151.0,0.00022246,2]
[367144168,1750669879384,-151.0,0.00022246,2]
[367144169,1750669879394,-151.0,0.00022246,2]
[367144170,1750669879406,-151.0,0.00022246,2]
[367144171,1750669879416,-151.0,0.00022246,2]
[367144172,1750669879427,-500.0,0.00022246,2]
[367144173,1750669879436,-151.0,0.00022246,2]
[367144174,1750669879447,-500.0,0.00022246,2]
[367144175,1750669879457,-500.0,0.00022273,2]
[367144176,1750669879467,-151.0,0.00022273,2]
[367144177,1750669879477,-154.16487973,0.00022273,2]
[367144178,1750669879486,-500.0,0.00022273,2]
[367144179,1750669879495,-151.0,0.00022273,2]
[367144180,1750669879505,-500.0,0.00022273,2]
[367144181,1750669879515,-500.0,0.00022301,2]
[367144182,1750669879525,-198.0,0.00022301,2]
[367144183,1750669879535,-500.0,0.00022301,2]
[367144184,1750669879544,-151.0,0.00022301,2]
[367144185,1750669879554,-510.29819206,0.00022301,2]
[367144186,1750669879564,-500.0,0.00022328,2]
[367144187,1750669879573,-500.0,0.00022328,2]
[367144188,1750669879583,-245.0,0.00022328,2]
[367144189,1750669879592,-500.0,0.00022356,2]
[367144190,1750669879602,-500.0,0.00022356,2]
[367144191,1750669879612,-184.93961047,0.00022365,2]
[367144192,1750669879622,-500.0,0.00022383,2]
[367144193,1750669879631,-500.0,0.0002241,2]
[367144194,1750669879640,-500.0,0.00022438,2]
[367144195,1750669879650,-460.0,0.00022464,2]
[367144196,1750669879659,-916.99,0.00022464,2]
[367144197,1750669879669,-460.0,0.00022464,2]
[367144198,1750669879679,-622.06,0.00022464,2]
[367144199,1750669879689,-460.0,0.00022464,2]
[367144200,1750669879699,-460.0,0.00022464,2]
[367144201,1750669879708,-533.72,0.00022464,2]
[367144202,1750669879717,-580.29,0.00022464,2]
[367144203,1750669879727,-460.0,0.00022464,2]
[367144204,1750669879737,-700.92,0.00022464,2]
[367144205,1750669879747,-460.0,0.00022464,2]
[367144206,1750669879756,-460.0,0.00022464,2]
[367144207,1750669879766,-2216.95,0.00022464,2]
[367144208,1750669879775,-2281.81,0.00022464,2]
[367144209,1750669879784,-1166.3,0.00022464,2]
[367144210,1750669879793,-1694.22,0.00022464,2]
[367144211,1750669879803,-2719.03,0.00022464,2]
[367144212,1750669879813,-1518.39,0.00022464,2]
[367144213,1750669879822,-5933.55,0.00022464,2]
[367144214,1750669879832,-460.0,0.00022465,2]
[367144215,1750669879842,-460.0,0.00022465,2]
[367144216,1750669879853,-471.9,0.00022465,2]
[367144217,1750669879863,-460.0,0.00022465,2]
[367144218,1750669879873,-591.29191835,0.00022465,2]
[367144219,1750669879884,-460.0,0.00022465,2]
[367144220,1750669879894,-460.0,0.00022465,2]
[367144221,1750669879903,-460.0,0.00022465,2]
[367144222,1750669879913,-834.62,0.00022465,2]
[367144223,1750669879923,-460.0,0.00022465,2]
[367144224,1750669879933,-460.0,0.00022465,2]
[367144225,1750669879943,-460.0,0.00022465,2]
[367144226,1750669879953,-460.0,0.00022465,2]
[367144227,1750669879962,-460.0,0.00022465,2]
[367144228,1750669879972,-460.0,0.00022465,2]
[367144229,1750669879981,-318.89120257,0.00022465,2]
[367144230,1750669879991,-460.0,0.00022465,2]
[367144231,1750669880001,-460.0,0.00022465,2]
[367144232,1750669880011,-460.0,0.00022465,2]
[367144233,1750669880021,-608.63,0.00022465,2]
[367144234,1750669880031,-460.0,0.00022465,2]
[367144235,1750669880040,-787.23,0.00022465,2]
[367144236,1750669880050,-460.0,0.00022465,2]
[367144237,1750669880061,-460.0,0.00022465,2]
[367144238,1750669880071,-396.80810749,0.00022465,2]
[367144239,1750669880081,-460.0,0.00022465,2]
[367144240,1750669880090,-583.39817776,0.00022465,2]
[367144241,1750669880100,-991.08,0.00022465,2]
[367144242,1750669880109,-460.0,0.00022465,2]
[367144243,1750669880118,-460.0,0.00022465,2]
[367144244,1750669880128,-460.0,0.00022465,2]
[367144245,1750669880137,-1584.48,0.00022465,2]
[367144246,1750669880147,-641.42,0.00022465,2]
[367144247,1750669880157,-460.0,0.00022465,2]
[367144248,1750669880166,-460.0,0.00022465,2]
[367144249,1750669880176,-2854.73,0.00022465,2]
[367144250,1750669880185,-460.0,0.00022465,2]
[367144251,1750669880195,-1542.54,0.00022465,2]
[367144252,1750669880205,-324.25642,0.00022465,2]
[367144253,1750669880215,-460.0,0.00022465,2]
[367144254,1750669880225,-1028.14,0.00022465,2]
[367144255,1750669880236,-460.0,0.00022465,2]
[367144256,1750669880386,-460.0,0.00022465,2]
[367144257,1750669880398,-772.48,0.00022465,2]
[367144258,1750669880407,-226.79691198,0.00022465,2]
[367144259,1750669881093,-0.58752707,0.00021917,2]
[367144260,1750669881104,-459.41247293,0.00021917,2]
[367144261,1750669881113,-122.47191107,0.00021917,2]
[367144262,1750669881124,-337.82466485,0.00021917,2]
[367144263,1750669881134,-460.0,0.00022191,2]
[367144264,1750669881142,-233.20308802,0.00022465,2]
[367144265,1750669881152,-969.46,0.00022465,2]
[367144266,1750669881161,-293.13623069,0.00022465,2]
[367144267,1750669893257,150.0,0.00021769,30]
[367144268,1750669893825,150.0,0.00023748,30]
[367144306,1750669945816,-178.0,0.0002117,2]
[367144307,1750669967148,150.0,0.00021409,30]
[367144308,1750669967568,150.0,0.00023355,30]
[367144309,1750670042656,150.0,0.00021729,30]
[367144310,1750670043092,150.0,0.00023705,30]
[367144312,1750670084411,160.717299,0.00013699,2]
[367144313,1750670103149,6762.47998741,0.00020066,14]
[367144314,1750670117352,150.0,0.00021739,30]
[367144318,1750670138634,-160.717299,0.00020187,2]
[367144319,1750670138654,-30.619511,0.0002117,2]
[367144320,1750670138676,-172.66319,0.00021249,2]
[367144321,1750670192464,150.0,0.000216,30]
[367144322,1750670192868,150.0,0.00023564,30]
[367144325,1750670265243,150.0,0.00021627,30]
[367144326,1750670336894,-7611.0,0.00020913,2]
[367144327,1750670338675,150.0,0.00021751,30]
[367144328,1750670339168,150.0,0.00023729,30]
[367144330,1750670403093,2006.30611202,0.00020066,14]
[367144331,1750670416913,150.0,0.00021751,30]
[367144332,1750670490031,150.0,0.00021759,30]
[367144341,1750670852311,-300.0,0.00020912,2]
[367144342,1750670852333,-1200.0,0.00020912,2]
[367144343,1750670852353,-300.0,0.00020912,2]
[367144344,1750670852373,-300.0,0.00020912,2]
[367144345,1750670852394,-7429.99073262,0.00020913,2]
[367144396,1750671032048,-160.476546,0.00020673,2]
[367144398,1750671032058,-164.72290119,0.00020813,2]
[367144400,1750671032068,-300.0,0.00020912,2]
[367144402,1750671032077,-1200.0,0.00020912,2]
[367144404,1750671032087,-9859.00926738,0.00020913,2]
[367144406,1750671032097,-165.728079,0.00020922,2]
[367144408,1750671032107,-9.73480146,0.00021249,2]
[367144410,1750671032117,-101.30842821,0.00021389,2]
[367144415,1750671032155,-92.97002859,0.00021389,2]
[367144417,1750671032167,-184.93961047,0.00021817,2]
[367144419,1750671032176,-207.4,0.00021904,2]
[367144421,1750671032185,-175.785,0.00021907,2]
[367144424,1750671032194,-193.06,0.00021907,3]
[367144427,1750671032203,-579.2,0.00021907,3]
[367144430,1750671032214,-401.3362467,0.00021907,10]
[367144434,1750671032225,-755.8637533,0.00021907,10]
[367144436,1750671032234,-485.74349881,0.00021909,2]
[367144437,1750671032243,-500.0,0.00021909,2]
[367144439,1750671032252,-536.81770472,0.00021909,2]
[367144441,1750671032262,-500.0,0.00021909,2]
[367144444,1750671032271,-500.0,0.00021909,2]
[367144445,1750671032282,-500.0,0.00021909,2]
[367144447,1750671032292,-500.0,0.00021909,2]
[367144450,1750671032301,-500.0,0.00021909,2]
[367144452,1750671032311,-500.0,0.00021909,2]
[367144454,1750671032320,-616.28094779,0.00021909,2]
[367144456,1750671032329,-500.0,0.00021909,2]
[367144458,1750671032339,-367.77408279,0.00021909,2]
[367145008,1750671038183,-1806.78,0.00021907,10]
[367145009,1750671038193,-305.49120709,0.00021908,2]
[367145010,1750671038203,-500.0,0.00021908,2]
[367145011,1750671038213,-500.0,0.00021908,2]
[367145012,1750671038223,-500.0,0.00021908,2]
[367145015,1750671038232,-383.46362742,0.00021908,2]
[367145017,1750671038243,-500.0,0.00021908,2]
[367145018,1750671038252,-500.0,0.00021908,2]
[367145019,1750671038262,-500.0,0.00021908,2]
[367145020,1750671038271,-500.0,0.00021908,2]
[367145021,1750671038281,-500.0,0.00021908,2]
[367145022,1750671038293,-500.0,0.00021908,2]
[367145023,1750671038304,-468.18059167,0.00021908,2]
[367145024,1750671038315,-500.0,0.00021908,2]
[367145025,1750671038330,-500.0,0.00021908,2]
[367145026,1750671038342,-500.0,0.00021908,2]
[367145027,1750671038352,-503.99680582,0.00021908,2]
[367145028,1750671038361,-620.26716561,0.00021908,2]
[367145029,1750671038371,-620.27220197,0.00021908,2]
[367145030,1750671038380,-500.0,0.00021908,2]
[367145031,1750671038389,-500.0,0.00021908,2]
[367145032,1750671038400,-500.0,0.00021908,2]
[367145033,1750671038409,-193.78060958,0.00021908,2]
[367145034,1750671038419,-500.0,0.00021908,2]
[367145035,1750671038428,-650.0,0.00021908,2]
[367145036,1750671038437,-500.0,0.00021916,2]
[367145037,1750671038447,-165.96699541,0.00021916,2]
[367145038,1750671038456,-500.0,0.00021916,2]
[367145039,1750671038466,-505.60701742,0.00021916,2]
[367145040,1750671038475,-500.0,0.00021916,2]
[367145041,1750671038484,-500.0,0.00021916,2]
[367145042,1750671038494,-500.0,0.00021916,2]
[367145043,1750671038504,-500.0,0.00021916,2]
[367145044,1750671038513,-456.04093539,0.00021916,2]
[367145045,1750671038523,-500.0,0.00021916,2]
[367145046,1750671038532,-500.0,0.00021916,2]
[367145047,1750671038541,-500.0,0.00021916,2]
[367145048,1750671038551,-177.51,0.00021916,2]
[367145049,1750671038560,-460.0,0.00021917,2]
[367145050,1750671038569,-460.0,0.00021917,2]
[367145051,1750671038579,-460.0,0.00021917,2]
[367145052,1750671038588,-460.0,0.00021917,2]
[367145054,1750671038597,-460.0,0.00021917,2]
[367145056,1750671038607,-460.0,0.00021917,2]
[367145058,1750671038616,-467.77977792,0.00021917,2]
[367145060,1750671038626,-460.0,0.00021917,2]
[367145061,1750671038635,-460.0,0.00021917,2]
[367145063,1750671038644,-201.95662886,0.00021917,2]
[367145064,1750671038654,-460.0,0.00021917,2]
[367145066,1750671038663,-479.13964789,0.00021917,2]
[367145067,1750671038672,-460.46809243,0.00021917,2]
[367145069,1750671038682,-460.0,0.00021917,2]
[367145070,1750671038692,-460.0,0.00021917,2]
[367145071,1750671038701,-460.0,0.00021917,2]
[367145072,1750671038710,-460.0,0.00021917,2]
[367145073,1750671038719,-460.0,0.00021917,2]
[367145074,1750671038728,-460.0,0.00021917,2]
[367145075,1750671038738,-460.0,0.00021917,2]
[367145076,1750671038747,-460.0,0.00021917,2]
[367145077,1750671038756,-713.33,0.00021917,2]
[367145078,1750671038766,-460.0,0.00021917,2]
[367145079,1750671038775,-460.0,0.00021917,2]
[367145080,1750671038786,-460.0,0.00021917,2]
[367145081,1750671038796,-460.0,0.00021917,2]
[367145082,1750671038805,-460.0,0.00021917,2]
[367145083,1750671038815,-508.43709365,0.00021917,2]
[367145084,1750671038824,-548.06737321,0.00021917,2]
[367145085,1750671038834,-460.0,0.00021917,2]
[367145086,1750671038844,-460.0,0.00021917,2]
[367145087,1750671038853,-460.0,0.00021917,2]
[367145088,1750671038863,-460.0,0.00021917,2]
[367145089,1750671038872,-1513.57,0.00021917,2]
[367145090,1750671038881,-460.18590287,0.00021917,2]
[367145091,1750671038892,-460.0,0.00021917,2]
[367145092,1750671038901,-782.96,0.00021917,2]
[367145093,1750671038910,-460.0,0.00021917,2]
[367145094,1750671038920,-571.16035282,0.00021917,2]
[367145095,1750671038929,-1090.4,0.00021917,2]
[367145096,1750671038938,-206.52037536,0.00021917,2]
[367145097,1750671038948,-460.0,0.00021917,2]
[367145098,1750671038957,-460.0,0.00021917,2]
[367145099,1750671038966,-460.0,0.00021917,2]
[367145100,1750671038975,-460.0,0.00021917,2]
[367145101,1750671038986,-460.0,0.00021917,2]
[367145102,1750671038995,-460.0,0.00021917,2]
[367145103,1750671039004,-460.0,0.00021917,2]
[367145104,1750671039013,-460.0,0.00021917,2]
[367145105,1750671039022,-460.0,0.00021917,2]
[367145106,1750671039032,-460.0,0.00021917,2]
[367145107,1750671039041,-460.0,0.00021917,2]
[367145108,1750671039051,-460.0,0.00021917,2]
[367145109,1750671039060,-460.0,0.00021917,2]
[367145110,1750671039069,-460.0,0.00021917,2]
[367145111,1750671039079,-460.0,0.00021917,2]
[367145112,1750671039088,-460.0,0.00021917,2]
[367145113,1750671039098,-460.0,0.00021917,2]